fUSD/lending_fUSD_20240213
["ID","MTS","AMOUNT","RATE_DAILY","PERIOD"]
[313897851,1707784234758,-1231.0,0.00030973,2]
[313897852,1707784234767,-500.0,0.00031,3]
[313897853,1707784234777,-299.96147713,0.00031,4]
[313897854,1707784234786,-3446.01129655,0.00031,5]
[313897855,1707784234795,-300.0,0.00031,32]
[313897856,1707784234804,-150.0,0.00031013,2]
[313897857,1707784234813,-1500.0,0.00031013,2]
[313897858,1707784234822,-150.0,0.00031019,2]
[313897859,1707784234830,-150.0,0.0003102,2]
[313897860,1707784234839,-150.0,0.00031029,2]
[313897861,1707784234848,-1500.0,0.00031037,2]
[313897862,1707784234857,-1500.0,0.00031058,2]
[313897863,1707784234867,-150.0,0.0003106,2]
[313897864,1707784234878,-1500.0,0.0003106,2]
[313897865,1707784234888,-1627.22407281,0.00031067,2]
[313897866,1707784234897,-150.0,0.00031068,2]
[313897867,1707784234906,-362.58864827,0.00031074,2]
[313897868,1707784234915,-150.0,0.00031077,2]
[313897869,1707784234925,-150.0,0.00031105,2]
[313897870,1707784234934,-150.0,0.00031118,2]
[313897871,1707784234943,-150.0,0.00031155,2]
[313897872,1707784234955,-300.0,0.00031176,2]
[313897873,1707784234963,-1500.0,0.00031186,2]
[313897874,1707784234973,-493.72022242,0.0003119,5]
[313897875,1707784234982,-652.8372411,0.00031205,2]
[313897876,1707784234991,-150.0,0.00031215,2]
[313897877,1707784235001,-151.0,0.00031233,120]
[313897878,1707784235010,-1500.0,0.00031242,2]
[313897879,1707784235019,-150.0,0.00031248,2]
[313897880,1707784235028,-1500.0,0.0003125,2]
[313897881,1707784235038,-300.0,0.00031255,2]
[313897882,1707784235047,-150.0,0.00031257,2]
[313897883,1707784235057,-150.0,0.00031257,2]
[313897884,1707784235067,-206.0,0.00031275,15]
[313897885,1707784235077,-1500.0,0.00031282,2]
[313897886,1707784235086,-150.0,0.00031291,2]
[313897887,1707784235096,-1500.0,0.00031301,2]
[313897888,1707784235105,-150.0,0.00031335,2]
[313897889,1707784235115,-150.0,0.0003134,2]
[313897890,1707784235124,-244.19440529,0.00031344,2]
[313897891,1707784235134,-230.08829952,0.00031348,2]
[313897892,1707784235144,-1334.96356875,0.00031363,2]
[313897893,1707784235153,-150.0,0.00031367,2]
[313897894,1707784235163,-150.0,0.00031369,2]
[313897895,1707784235173,-150.0,0.00031374,2]
[313897896,1707784235183,-1500.0,0.00031378,2]
[313897897,1707784235192,-150.0,0.00031379,2]
[313897898,1707784235202,-150.0,0.00031385,2]
[313897899,1707784235212,-300.0,0.000314,2]
[313897900,1707784235221,-150.0,0.00031402,2]
[313897901,1707784235230,-8543.01813512,0.00031403,2]
[313897902,1707784235239,-274.92539579,0.00031405,2]
[313897903,1707784235249,-300.0,0.00031408,2]
[313897904,1707784235258,-1500.0,0.00031419,2]
[313897905,1707784235267,-150.0,0.0003142,2]
[313897906,1707784235277,-1500.0,0.00031426,2]
[313897907,1707784235286,-150.0,0.00031427,2]
[313897908,1707784235296,-1500.0,0.00031428,2]
[313897909,1707784235305,-150.0,0.00031434,2]
[313897910,1707784235314,-300.0,0.00031435,2]
[313897911,1707784235324,-1500.0,0.00031441,2]
[313897912,1707784235333,-300.0,0.00031444,2]
[313897913,1707784235342,-150.0,0.00031452,2]
[313897914,1707784235352,-299.41085415,0.00031462,2]
[313897915,1707784235361,-300.0,0.00031469,2]
[313897916,1707784235370,-300.0,0.00031469,2]
[313897917,1707784235379,-300.0,0.00031469,2]
[313897918,1707784235389,-300.0,0.00031469,2]
[313897919,1707784235399,-300.0,0.00031469,2]
[313897920,1707784235408,-300.0,0.00031469,2]
[313897921,1707784235417,-300.0,0.00031469,2]
[313897922,1707784235428,-150.0,0.00031472,2]
[313897923,1707784235437,-1500.0,0.00031472,2]
[313897924,1707784235446,-300.0,0.00031472,2]
[313897925,1707784235455,-150.0,0.00031479,2]
[313897926,1707784235465,-150.0,0.00031482,2]
[313897927,1707784235475,-1500.0,0.00031488,2]
[313897928,1707784235484,-300.0,0.00031493,2]
[313897929,1707784235494,-300.0,0.00031495,2]
[313897930,1707784235503,-500.0,0.000315,2]
[313897931,1707784235512,-150.0,0.00031504,2]
[313897932,1707784235522,-150.0,0.00031508,2]
[313897933,1707784235531,-150.0,0.00031512,2]
[313897934,1707784235541,-150.0,0.00031522,2]
[313897935,1707784235550,-150.0,0.0003153,2]
[313897936,1707784235560,-150.0,0.00031531,2]
[313897937,1707784235570,-1500.0,0.00031541,2]
[313897938,1707784235580,-1500.0,0.00031545,2]
[313897939,1707784235589,-269.1116607,0.0003155,2]
[313897940,1707784235599,-150.0,0.00031554,2]
[313897941,1707784235609,-150.0,0.00031557,2]
[313897942,1707784235618,-1500.0,0.00031559,2]
[313897943,1707784235627,-300.0,0.0003157,2]
[313897944,1707784235636,-150.0,0.0003157,2]
[313897945,1707784235646,-150.0,0.00031578,2]
[313897946,1707784235655,-150.0,0.00031594,2]
[313897947,1707784235665,-6954.0045,0.00031596,3]
[313897948,1707784235674,-1500.0,0.00031597,2]
[313897949,1707784235685,-150.0,0.00031601,2]
[313897950,1707784235695,-150.0,0.00031602,2]
[313897951,1707784235704,-300.0,0.00031605,2]
[313897952,1707784235714,-300.0,0.00031609,2]
[313897953,1707784235723,-1500.0,0.00031614,2]
[313897954,1707784235732,-358.30876349,0.00031615,2]
[313897955,1707784235741,-150.0,0.00031618,2]
[313897956,1707784235751,-1500.0,0.00031627,2]
[313897957,1707784235760,-150.0,0.00031631,2]
[313897958,1707784235769,-150.0,0.00031636,2]
[313897959,1707784235779,-300.0,0.00031638,2]
[313897960,1707784235788,-1500.0,0.00031639,2]
[313897961,1707784235797,-1500.0,0.00031641,2]
[313897962,1707784235807,-180.0,0.00031644,2]
[313897963,1707784235816,-150.0,0.00031646,2]
[313897964,1707784235826,-150.0,0.00031646,2]
[313897965,1707784235835,-150.0,0.00031657,2]
[313897966,1707784235844,-150.0,0.00031661,2]
[313897967,1707784235853,-150.0,0.00031669,2]
[313897968,1707784235864,-5000.0,0.0003167,2]
[313897969,1707784235874,-1325.44,0.00031676,2]
[313897970,1707784235889,-1500.0,0.00031679,2]
[313897971,1707784235899,-333.33333,0.0003168,2]
[313897972,1707784235909,-1500.0,0.00031681,2]
[313897973,1707784235919,-150.0,0.00031692,2]
[313897974,1707784235930,-150.0,0.00031696,2]
[313897975,1707784235940,-150.0,0.00031697,2]
[313897976,1707784235950,-652.8372411,0.000317,2]
[313897977,1707784235961,-150.0,0.00031708,2]
[313897978,1707784235971,-150.0,0.00031727,2]
[313897979,1707784235981,-300.0,0.00031731,2]
[313897980,1707784235991,-150.0,0.00031734,2]
[313897981,1707784236001,-150.0,0.00031749,2]
[313897982,1707784236011,-150.0,0.00031757,2]
[313897983,1707784236021,-1463.23682841,0.00031768,2]
[313897984,1707784236030,-311.70538894,0.00031771,2]
[313897985,1707784236039,-150.0,0.00031773,2]
[313897986,1707784236049,-1500.0,0.00031794,2]
[313897987,1707784236058,-150.0,0.00031797,2]
[313897988,1707784236068,-150.0,0.00031797,2]
[313897989,1707784236078,-300.0,0.00031799,2]
[313897990,1707784236087,-300.0,0.00031799,2]
[313897991,1707784236096,-1000.0,0.000318,4]
[313897992,1707784236106,-19272.5870306,0.000318,3]
[313897993,1707784236115,-150.0,0.00031804,2]
[313897994,1707784236125,-1500.0,0.00031813,2]
[313897995,1707784236134,-300.0,0.00031819,2]
[313897996,1707784236143,-150.0,0.0003182,2]
[313897997,1707784236153,-150.0,0.0003182,2]
[313897998,1707784236162,-300.0,0.0003183,2]
[313897999,1707784236172,-893.3533,0.00031833,2]
[313898000,1707784236183,-150.0,0.00031856,2]
[313898001,1707784236193,-1500.0,0.00031857,2]
[313898002,1707784236201,-150.0,0.00031862,2]
[313898003,1707784236210,-151.0,0.0003187,30]
[313898004,1707784236220,-1500.0,0.00031878,2]
[313898005,1707784236228,-200.0,0.00031879,3]
[313898006,1707784236238,-234.63597224,0.00031882,2]
[313898007,1707784236247,-1500.0,0.00031885,2]
[313898008,1707784236257,-150.0,0.00031886,2]
[313898009,1707784236266,-157.80304487,0.00031886,2]
[313898010,1707784236275,-150.0,0.00031889,2]
[313898011,1707784236284,-300.0,0.00031896,2]
[313898012,1707784236293,-150.0,0.00031897,2]
[313898013,1707784236302,-3900.0,0.000319,11]
[313898014,1707784236311,-189.33070615,0.000319,2]
[313898015,1707784236321,-150.0,0.00031902,2]
[313898016,1707784236330,-152.09529989,0.00031907,2]
[313898017,1707784236340,-421.64,0.00031909,2]
[313898018,1707784236349,-342.27,0.00031909,2]
[313898019,1707784236359,-150.0,0.0003191,2]
[313898020,1707784236368,-150.0,0.00031912,2]
[313898021,1707784236377,-150.0,0.00031914,2]
[313898022,1707784236386,-1500.0,0.00031917,2]
[313898023,1707784236397,-150.0,0.00031921,2]
[313898024,1707784236407,-300.0,0.00031925,2]
[313898025,1707784236416,-150.0,0.00031926,2]
[313898026,1707784236425,-300.0,0.00031937,2]
[313898027,1707784236434,-150.0,0.00031946,2]
[313898028,1707784236444,-150.0,0.00031947,2]
[313898029,1707784236453,-150.0,0.00031948,2]
[313898030,1707784236463,-1500.0,0.0003195,2]
[313898031,1707784236472,-150.0,0.00031961,2]
[313898032,1707784236482,-150.0,0.00031963,2]
[313898033,1707784236491,-300.0,0.00031968,2]
[313898034,1707784236501,-150.0,0.00031968,2]
[313898035,1707784236510,-800.0,0.00031973,2]
[313898036,1707784236520,-150.0,0.00031979,2]
[313898037,1707784236530,-150.0,0.00031986,2]
[313898038,1707784236539,-300.0,0.0003199,2]
[313898039,1707784236549,-500.0,0.00031998,2]
[313898040,1707784236558,-200.0,0.00031998,2]
[313898041,1707784236568,-1728.92346006,0.00031999,2]
[313898042,1707784236578,-150.01,0.00031999,2]
[313898043,1707784236588,-27591.75350619,0.00032,2]
[313898044,1707784236598,-500.0,0.00032,2]
[313898045,1707784236607,-500.0,0.00032,2]
[313898046,1707784236616,-500.0,0.00032,2]
[313898047,1707784236625,-500.0,0.00032,2]
[313898048,1707784236634,-500.0,0.00032,2]
[313898049,1707784236643,-500.0,0.00032,2]
[313898050,1707784236652,-500.0,0.00032,2]
[313898051,1707784236661,-500.0,0.00032,2]
[313898052,1707784236670,-500.0,0.00032,2]
[313898053,1707784236681,-500.0,0.00032,2]
[313898054,1707784236690,-500.0,0.00032,2]
[313898055,1707784236698,-500.0,0.00032,2]
[313898056,1707784236707,-500.0,0.00032,2]
[313898057,1707784236717,-500.0,0.00032,2]
[313898058,1707784236725,-500.0,0.00032,2]
[313898059,1707784236735,-500.0,0.00032,2]
[313898060,1707784236744,-500.0,0.00032,2]
[313898061,1707784236753,-500.0,0.00032,2]
[313898062,1707784236763,-500.0,0.00032,2]
[313898063,1707784236773,-500.0,0.00032,2]
[313898064,1707784236783,-500.0,0.00032,2]
[313898065,1707784236792,-500.0,0.00032,2]
[313898066,1707784236801,-500.0,0.00032,2]
[313898067,1707784236811,-500.0,0.00032,2]
[313898068,1707784236821,-500.0,0.00032,2]
[313898069,1707784236830,-500.0,0.00032,2]
[313898070,1707784236839,-500.0,0.00032,2]
[313898071,1707784236848,-500.0,0.00032,2]
[313898072,1707784236857,-500.0,0.00032,2]
[313898073,1707784236867,-500.0,0.00032,2]
[313898074,1707784236878,-500.0,0.00032,2]
[313898075,1707784236888,-500.0,0.00032,2]
[313898076,1707784236897,-500.0,0.00032,2]
[313898077,1707784236906,-500.0,0.00032,2]
[313898078,1707784237086,-500.0,0.00032,2]
[313898079,1707784237097,-500.0,0.00032,2]
[313898080,1707784237107,-500.0,0.00032,2]
[313898081,1707784237116,-500.0,0.00032,2]
[313898082,1707784237125,-500.0,0.00032,2]
[313898083,1707784237135,-500.0,0.00032,2]
[313898084,1707784237145,-500.0,0.00032,2]
[313898085,1707784237155,-500.0,0.00032,2]
[313898086,1707784237166,-500.0,0.00032,2]
[313898087,1707784237176,-500.0,0.00032,2]
[313898088,1707784237187,-500.0,0.00032,2]
[313898089,1707784237197,-500.0,0.00032,2]
[313898090,1707784237207,-500.0,0.00032,2]
[313898091,1707784237216,-500.0,0.00032,2]
[313898092,1707784237225,-500.0,0.00032,2]
[313898093,1707784237234,-500.0,0.00032,2]
[313898094,1707784237244,-500.0,0.00032,2]
[313898095,1707784237253,-500.0,0.00032,2]
[313898096,1707784237262,-500.0,0.00032,2]
[313898097,1707784237273,-500.0,0.00032,2]
[313898098,1707784237282,-500.0,0.00032,2]
[313898099,1707784237292,-500.0,0.00032,2]
[313898100,1707784237301,-500.0,0.00032,2]
[313898101,1707784237310,-500.0,0.00032,2]
[313898102,1707784237319,-520.45,0.00032,2]
[313898103,1707784237328,-300.0,0.00032,33]
[313898104,1707784237338,-500.0,0.00032,2]
[313898105,1707784237347,-500.0,0.00032,2]
[313898106,1707784237357,-13160.34354298,0.00032,4]
[313898107,1707784237366,-2000.0,0.00032,2]
[313898108,1707784237375,-200.0,0.00032,2]
[313898109,1707784237384,-150.0,0.00032,2]
[313898110,1707784237394,-585.89801317,0.00032,2]
[313898111,1707784237415,-362.73325483,0.00032,2]
[313898112,1707784237429,-1051.368732,0.00032,2]
[313898113,1707784237439,-200.0,0.00032,2]
[313898114,1707784237449,-297.22265224,0.00032,2]
[313898115,1707784237460,-1809.88952973,0.00032,2]
[313898116,1707784237472,-2147.15410892,0.00032,2]
[313898117,1707784237493,-329.30286844,0.00032,2]
[313898118,1707784237505,-2525.62198539,0.00032,2]
[313898119,1707784237516,-609.86344662,0.00032,2]
[313898120,1707784237528,-721.6503031,0.00032,2]
[313898121,1707784237542,-1559.29510556,0.00032,2]
[313898122,1707784237551,-150.0,0.00032,2]
[313898123,1707784237561,-153.95,0.00032,2]
[313898124,1707784237570,-153.95,0.00032,2]
[313898125,1707784237580,-3081.4698,0.00032003,2]
[313898126,1707784237589,-194.0,0.00032036,5]
[313898127,1707784237599,-333.33333,0.0003207,2]
[313898128,1707784237608,-704.45504657,0.00032096,2]
[313898129,1707784237618,-270.9148039,0.00032096,2]
[313898130,1707784237627,-1628.90609582,0.00032096,2]
[313898131,1707784237636,-154.61240104,0.00032096,2]
[313898132,1707784237646,-158.27503926,0.0003217,20]
[313898133,1707784237655,-1463.23682841,0.00032189,2]
[313898134,1707784237665,-6690.83609087,0.00032196,4]
[313898135,1707784237675,-200.0,0.00032224,2]
[313898136,1707784237685,-800.0,0.00032224,2]
[313898137,1707784237695,-2000.0,0.0003232,2]
[313898138,1707784237704,-200.0,0.0003232,2]
[313898139,1707784237714,-2000.0,0.0003232,2]
[313898140,1707784237723,-200.0,0.0003232,2]
[313898141,1707784237733,-151.0,0.00032521,7]
[313898142,1707784237742,-164.90009868,0.00032628,2]
[313898143,1707784237751,-481.92788693,0.00032643,2]
[313898144,1707784237764,-1033.41389252,0.00032643,2]
[313898145,1707784237793,-484.65822055,0.00032643,2]
[313898146,1707784237802,-200.0,0.00032643,2]
[313898147,1707784237812,-883.34810867,0.00032643,2]
[313898148,1707784237823,-825.78361698,0.00032643,2]
[313898149,1707784237835,-290.86827435,0.00032643,2]
[313898150,1707784237844,-200.0,0.00032643,2]
[313898152,1707784237854,-369.13172565,0.00032672,2]
[313898154,1707784237866,-433.5118233,0.00032672,2]
[313898155,1707784237884,-157.35645105,0.00032672,2]
[313898156,1707784237893,-246.25512376,0.0003269,2]
[313898157,1707784237915,-87.07821624,0.0003269,2]
[313898158,1707784237926,-7840.29947448,0.00032696,3]
[313898159,1707784237939,-2159.70052552,0.00032696,3]
[313898160,1707784237948,-200.0,0.00032726,2]
[313898161,1707784237958,-174.17406701,0.00032777,2]
[313898162,1707784237968,-3000.0,0.000328,2]
[313898163,1707784237977,-500.0,0.00032803,2]
[313898164,1707784237987,-501.6691,0.00032803,2]
[313898165,1707784237996,-1000.0,0.00032803,2]
[313898166,1707784238005,-271.4136,0.00032803,2]
[313898167,1707784238014,-300.0,0.00032865,2]
[313898168,1707784238024,-157.0,0.00032868,2]
[313898169,1707784238033,-327.02012642,0.00032873,2]
[313898170,1707784238042,-300.0,0.00032875,2]
[313898171,1707784238051,-300.0,0.00032875,2]
[313898172,1707784238061,-300.0,0.00032875,2]
[313898173,1707784238070,-300.0,0.00032875,2]
[313898174,1707784238079,-358.62920343,0.00032876,2]
[313898175,1707784238088,-476.89668936,0.00032876,2]
[313898176,1707784238097,-185.18948008,0.00032876,2]
[313898177,1707784238106,-435.58098454,0.00032876,2]
[313898178,1707784238116,-500.0,0.00032876,2]
[313898179,1707784238125,-644.62442629,0.00032876,2]
[313898180,1707784238134,-151.22093265,0.00032876,2]
[313898181,1707784238143,-500.0,0.00032876,2]
[313898182,1707784238153,-166.11281807,0.00032876,2]
[313898183,1707784238162,-500.0,0.00032876,2]
[313898184,1707784238171,-500.0,0.00032876,2]
[313898185,1707784238181,-500.0,0.00032876,2]
[313898186,1707784238190,-500.0,0.00032876,2]
[313898187,1707784238199,-500.0,0.00032876,2]
[313898188,1707784238209,-500.0,0.00032876,2]
[313898189,1707784238218,-500.0,0.00032876,2]
[313898190,1707784238227,-500.0,0.00032876,2]
[313898191,1707784238236,-500.0,0.00032876,2]
[313898192,1707784238245,-500.0,0.00032876,2]
[313898193,1707784238254,-500.0,0.00032876,2]
[313898194,1707784238263,-500.0,0.00032876,2]
[313898195,1707784238273,-500.0,0.00032876,2]
[313898196,1707784238282,-500.0,0.00032876,2]
[313898197,1707784238291,-500.0,0.00032876,2]
[313898198,1707784238301,-500.0,0.00032876,2]
[313898200,1707784238310,-387.23224337,0.00032876,2]
[313898201,1707784238319,-500.0,0.00032876,2]
[313898203,1707784238331,-500.0,0.00032876,2]
[313898204,1707784238341,-500.0,0.00032876,2]
[313898205,1707784238351,-583.15203353,0.00032876,2]
[313898206,1707784238361,-500.0,0.00032876,2]
[313898207,1707784238370,-500.0,0.00032876,2]
[313898208,1707784238379,-532.62689744,0.00032876,2]
[313898209,1707784238388,-500.0,0.00032876,2]
[313898210,1707784238398,-500.0,0.00032876,2]
[313898211,1707784238407,-500.0,0.00032876,2]
[313898212,1707784238417,-500.0,0.00032876,2]
[313898213,1707784238427,-500.0,0.00032876,2]
[313898214,1707784238436,-500.0,0.00032876,2]
[313898215,1707784238445,-500.0,0.00032876,2]
[313898216,1707784238454,-500.0,0.00032876,2]
[313898217,1707784238463,-500.0,0.00032876,2]
[313898218,1707784238472,-500.0,0.00032876,2]
[313898219,1707784238482,-500.0,0.00032876,2]
[313898220,1707784238491,-500.0,0.00032876,2]
[313898221,1707784238501,-500.0,0.00032876,2]
[313898222,1707784238510,-500.0,0.00032876,2]
[313898223,1707784238519,-500.0,0.00032876,2]
[313898224,1707784238528,-500.0,0.00032876,2]
[313898225,1707784238537,-500.0,0.00032876,2]
[313898226,1707784238546,-498.75790861,0.00032876,2]
[313898227,1707784238555,-615.98632348,0.00032876,2]
[313898228,1707784238565,-500.0,0.00032876,2]
[313898229,1707784238574,-210.23494427,0.00032876,2]
[313898230,1707784238583,-500.0,0.00032876,2]
[313898231,1707784238592,-500.0,0.00032876,2]
[313898232,1707784238601,-500.0,0.00032876,2]
[313898233,1707784238611,-500.0,0.00032876,2]
[313898234,1707784238620,-398.97856274,0.00032876,7]
[313898235,1707784238822,260.55,0.00019793,2]
[313898236,1707784238878,260.55,0.00022057,2]
[313898237,1707784240450,-206.0,0.00022436,2]
[313898238,1707784240460,-260.55,0.00024321,2]
[313898239,1707784240469,-260.55,0.00026585,2]
[313898240,1707784240479,-260.55,0.00028849,2]
[313898241,1707784240488,-1253.0,0.00030973,2]
[313898242,1707784240497,-150.0,0.00030976,2]
[313898243,1707784240507,-150.0,0.00031055,2]
[313898244,1707784240516,-260.55,0.00031113,2]
[313898245,1707784240525,-150.0,0.00031121,2]
[313898246,1707784240534,-150.0,0.00031122,2]
[313898247,1707784240544,-150.0,0.00031126,2]
[313898248,1707784240553,-150.0,0.00031171,2]
[313898249,1707784240562,-150.0,0.00031173,2]
[313898250,1707784240572,-150.0,0.0003119,2]
[313898251,1707784240580,-150.0,0.00031212,2]
[313898252,1707784240590,-150.0,0.00031259,2]
[313898253,1707784240599,-150.0,0.00031261,2]
[313898254,1707784240608,-150.0,0.00031284,2]
[313898255,1707784240617,-150.0,0.00031296,2]
[313898256,1707784240626,-150.0,0.00031297,2]
[313898257,1707784240636,-150.0,0.00031321,2]
[313898258,1707784240645,-150.0,0.00031321,2]
[313898259,1707784240654,-150.0,0.00031348,2]
[313898260,1707784240663,-150.0,0.00031399,2]
[313898261,1707784240673,-150.0,0.00031403,2]
[313898262,1707784240682,-150.0,0.00031414,2]
[313898263,1707784240691,-150.0,0.00031418,2]
[313898264,1707784240701,-150.0,0.0003145,2]
[313898265,1707784240710,-150.0,0.0003147,2]
[313898266,1707784240719,-150.0,0.00031476,2]
[313898267,1707784240728,-150.0,0.00031488,2]
[313898268,1707784240737,-150.0,0.00031495,2]
[313898269,1707784240747,-150.0,0.00031506,2]
[313898270,1707784240756,-150.0,0.00031508,2]
[313898271,1707784240765,-150.0,0.00031508,2]
[313898272,1707784240774,-150.0,0.00031536,2]
[313898273,1707784240783,-150.0,0.00031536,2]
[313898274,1707784240792,-150.0,0.00031537,2]
[313898275,1707784240801,-150.0,0.00031564,2]
[313898276,1707784240810,-150.0,0.00031584,2]
[313898277,1707784240819,-150.0,0.00031593,2]
[313898278,1707784240828,-150.0,0.00031595,2]
[313898279,1707784240837,-150.0,0.00031602,2]
[313898280,1707784240846,-150.0,0.0003165,2]
[313898281,1707784240856,-150.0,0.00031657,2]
[313898282,1707784240866,-150.0,0.00031673,2]
[313898283,1707784240876,-150.0,0.00031674,2]
[313898284,1707784240888,-150.0,0.00031675,2]
[313898285,1707784240897,-150.0,0.00031684,2]
[313898286,1707784240906,-150.0,0.00031691,2]
[313898287,1707784240915,-150.0,0.00031699,2]
[313898288,1707784240926,-150.0,0.00031718,2]
[313898289,1707784240936,-150.0,0.00031721,2]
[313898290,1707784240945,-150.0,0.00031726,2]
[313898291,1707784240956,-150.0,0.00031726,2]
[313898292,1707784240966,-150.0,0.00031737,2]
[313898293,1707784240976,-150.0,0.00031738,2]
[313898294,1707784240987,-150.0,0.00031747,2]
[313898295,1707784240997,-150.0,0.00031795,2]
[313898296,1707784241007,-150.0,0.00031799,2]
[313898297,1707784241017,-150.0,0.0003181,2]
[313898298,1707784241027,-150.0,0.00031828,2]
[313898299,1707784241037,-150.0,0.00031836,2]
[313898300,1707784241049,-150.0,0.00031845,2]
[313898301,1707784241060,-150.0,0.00031875,2]
[313898302,1707784241070,-150.0,0.00031895,2]
[313898303,1707784241079,-150.0,0.00031906,2]
[313898304,1707784241088,-150.0,0.00031908,2]
[313898305,1707784241098,-150.0,0.00031919,2]
[313898306,1707784241107,-150.0,0.00031926,2]
[313898307,1707784241116,-150.0,0.00031947,2]
[313898308,1707784241125,-150.0,0.00031953,2]
[313898309,1707784241134,-150.0,0.00031964,2]
[313898310,1707784241143,-150.0,0.00031971,2]
[313898311,1707784241153,-150.0,0.00031972,2]
[313898312,1707784241163,-150.0,0.00031977,2]
[313898313,1707784241172,-150.0,0.00031991,2]
[313898314,1707784241182,-150.0,0.00031995,2]
[313898315,1707784241192,-150.0,0.00031996,2]
[313898316,1707784241201,-196133.56310455,0.0003269,2]
[313898317,1707784241214,-4126.19260715,0.0003269,2]
[313898318,1707784241226,-1036.06964927,0.0003269,2]
[313898319,1707784241239,-656.63179569,0.0003269,2]
[313898320,1707784241250,-317.15399962,0.0003269,2]
[313898321,1707784241274,-549.00530658,0.0003269,2]
[313898322,1707784241335,-598.79650643,0.0003269,2]
[313898348,1707784244282,798.287,0.00022388,2]
[313898349,1707784244304,-415.71,0.0003199,10]
[313898350,1707784244314,-13.98190727,0.0003269,2]
[313898351,1707784244326,-919.71486432,0.0003269,2]
[313898352,1707784244529,734.17547666,0.00021,2]
[313898353,1707784244705,-300.02,0.00031999,2]
[313898354,1707784244714,-1296.69259505,0.00031999,2]
[313898355,1707784244724,-265855.97491626,0.0003269,2]
[313898356,1707784244735,-1599.5001,0.0003269,2]
[313898357,1707784244747,-464.96949908,0.0003269,2]
[313898358,1707784244761,-3925.27416249,0.0003269,2]
[313898359,1707784244774,-1073.47295653,0.0003269,2]
[313898360,1707784244786,-30693.90249132,0.0003269,2]
[313898425,1707784360779,206.9982,0.00022388,2]
[313898426,1707784886741,276.2245505,0.00022388,15]
[313898439,1707785432199,-300.0,0.00022486,2]
[313898440,1707785432210,-24.4968952,0.00022486,2]
[313898441,1707785432223,-125.5031048,0.00022486,2]
[313898442,1707785432236,-1084.74630299,0.00022487,2]
[313898443,1707785432250,-655.60712406,0.00022487,2]
[313898444,1707785432311,-1729.55939413,0.00022487,2]
[313898445,1707785432325,-330.19856431,0.00022487,2]
[313898446,1707785432371,-480.34451528,0.00022487,2]
[313898447,1707785432383,-14050.0,0.00022487,2]
[313898448,1707785432396,-1703.3328388,0.00022487,2]
[313898449,1707785432408,-14104.77180277,0.00022487,2]
[313898450,1707785432421,-727.69660047,0.00022487,2]
[313898451,1707785432438,-600.0,0.00022487,2]
[313898452,1707785432451,-525.22839655,0.00022487,2]
[313898453,1707785432463,-1926.7925768,0.00022487,2]
[313898454,1707785432476,-365.1566035,0.00022487,2]
[313898455,1707785432491,-906.35771714,0.00022487,2]